{"text_format":"3","workbook":"xlsx","n_sheets":4,"sheets":["Resumo","Ativos","Passivos","Categorias"],"not_rendered":{"defined_names":10},"read":"whole","date_system":"1900"}

{"sheet":"Resumo","index":0,"n_rows":12,"n_cols":4,"rows_kept":12}
[null,"Balanço"]
[null,null,{"$f":"\"AF \"&YEAR(TODAY())-1","v":"AF 2016"},{"$f":"\"AF \"&YEAR(TODAY())","v":"AF 2017"}]
[null,"Tipo de Ativo","Ano Anterior","Ano Atual"]
[null,"Ativos Atuais",{"$f":"SUMIFS(Ativos[Ano Anterior],Ativos[Tipo de Ativo],Dashboard[[#This Row],[Tipo de Ativo]])+SUMIFS(Passivos[Ano Anterior],Passivos[Tipo de Passivo],Dashboard[[#This Row],[Tipo de Ativo]])","v":600},{"$f":"SUMIFS(Ativos[Ano Atual],Ativos[Tipo de Ativo],Dashboard[[#This Row],[Tipo de Ativo]])+SUMIFS(Passivos[Ano Atual],Passivos[Tipo de Passivo],Dashboard[[#This Row],[Tipo de Ativo]])","v":600}]
[null,"Ativos Fixos",{"$f":"SUMIFS(Ativos[Ano Anterior],Ativos[Tipo de Ativo],Dashboard[[#This Row],[Tipo de Ativo]])+SUMIFS(Passivos[Ano Anterior],Passivos[Tipo de Passivo],Dashboard[[#This Row],[Tipo de Ativo]])","v":{"v":-100,"d":"-100 "}},{"$f":"SUMIFS(Ativos[Ano Atual],Ativos[Tipo de Ativo],Dashboard[[#This Row],[Tipo de Ativo]])+SUMIFS(Passivos[Ano Atual],Passivos[Tipo de Passivo],Dashboard[[#This Row],[Tipo de Ativo]])","v":{"v":-85,"d":"-85 "}}]
[null,"Outros Ativos",{"$f":"SUMIFS(Ativos[Ano Anterior],Ativos[Tipo de Ativo],Dashboard[[#This Row],[Tipo de Ativo]])+SUMIFS(Passivos[Ano Anterior],Passivos[Tipo de Passivo],Dashboard[[#This Row],[Tipo de Ativo]])","v":0},{"$f":"SUMIFS(Ativos[Ano Atual],Ativos[Tipo de Ativo],Dashboard[[#This Row],[Tipo de Ativo]])+SUMIFS(Passivos[Ano Atual],Passivos[Tipo de Passivo],Dashboard[[#This Row],[Tipo de Ativo]])","v":0}]
[null,"Passivos Atuais",{"$f":"SUMIFS(Ativos[Ano Anterior],Ativos[Tipo de Ativo],Dashboard[[#This Row],[Tipo de Ativo]])+SUMIFS(Passivos[Ano Anterior],Passivos[Tipo de Passivo],Dashboard[[#This Row],[Tipo de Ativo]])","v":500},{"$f":"SUMIFS(Ativos[Ano Atual],Ativos[Tipo de Ativo],Dashboard[[#This Row],[Tipo de Ativo]])+SUMIFS(Passivos[Ano Atual],Passivos[Tipo de Passivo],Dashboard[[#This Row],[Tipo de Ativo]])","v":350}]
[null,"Passivos a Longo Prazo",{"$f":"SUMIFS(Ativos[Ano Anterior],Ativos[Tipo de Ativo],Dashboard[[#This Row],[Tipo de Ativo]])+SUMIFS(Passivos[Ano Anterior],Passivos[Tipo de Passivo],Dashboard[[#This Row],[Tipo de Ativo]])","v":0},{"$f":"SUMIFS(Ativos[Ano Atual],Ativos[Tipo de Ativo],Dashboard[[#This Row],[Tipo de Ativo]])+SUMIFS(Passivos[Ano Atual],Passivos[Tipo de Passivo],Dashboard[[#This Row],[Tipo de Ativo]])","v":0}]
[null,"Capital Próprio",{"$f":"SUMIFS(Ativos[Ano Anterior],Ativos[Tipo de Ativo],Dashboard[[#This Row],[Tipo de Ativo]])+SUMIFS(Passivos[Ano Anterior],Passivos[Tipo de Passivo],Dashboard[[#This Row],[Tipo de Ativo]])","v":0},{"$f":"SUMIFS(Ativos[Ano Atual],Ativos[Tipo de Ativo],Dashboard[[#This Row],[Tipo de Ativo]])+SUMIFS(Passivos[Ano Atual],Passivos[Tipo de Passivo],Dashboard[[#This Row],[Tipo de Ativo]])","v":350}]
[null,"Ativos Totais",{"$f":"Ativos[[#Totals],[Ano Anterior]]","v":500},{"$f":"Ativos[[#Totals],[Ano Atual]]","v":515}]
[null,"Passivos Totais e Capitais Próprios",{"$f":"Passivos[[#Totals],[Ano Anterior]]","v":500},{"$f":"Passivos[[#Totals],[Ano Atual]]","v":700}]
[null,"Balanço",{"$f":"C10-C11","v":0},{"$f":"D10-D11","v":{"v":-185,"d":"-185 "}}]

{"sheet":"Ativos","index":1,"n_rows":14,"n_cols":5,"rows_kept":14}
[null,"Ativos"]
[{"$nulls":3},{"$f":"ANO_FISCAL","v":"AF 2016"},{"$f":"ANO_FISCAL_2","v":"AF 2017"}]
[null,"Tipo de Ativo","Descrição","Ano Anterior","Ano Atual"]
[null,"Ativos Atuais","Dinheiro",600,600]
[null,"Ativos Atuais","Investimentos"]
[null,"Ativos Atuais","Inventários"]
[null,"Ativos Atuais","Contas a receber"]
[null,"Ativos Atuais","Despesas pré-pagas"]
[null,"Ativos Fixos","Propriedade e equipamento"]
[null,"Ativos Fixos","Melhoramentos de Propriedades Arrendadas"]
[null,"Ativos Fixos","Capital próprio e outros investimentos"]
[null,"Ativos Fixos","Dedução da amortização acumulada (Valor Negativo)",{"v":-100,"d":"-100 "},{"v":-85,"d":"-85 "}]
[null,"Outros Ativos","Caridade"]
[null,"Ativos Totais",null,{"$f":"SUBTOTAL(109,Ativos[Ano Anterior])","v":500},{"$f":"SUBTOTAL(109,Ativos[Ano Atual])","v":515}]

{"sheet":"Passivos","index":2,"n_rows":12,"n_cols":5,"rows_kept":12}
[null,"Passivos"]
[{"$nulls":3},{"$f":"ANO_FISCAL","v":"AF 2016"},{"$f":"ANO_FISCAL_2","v":"AF 2017"}]
[null,"Tipo de Passivo","Descrição","Ano Anterior","Ano Atual"]
[null,"Passivos Atuais","Contas a pagar",null,350]
[null,"Passivos Atuais","Salários adquiridos"]
[null,"Passivos Atuais","Remunerações adquiridas",500]
[null,"Passivos Atuais","Impostos a pagar"]
[null,"Passivos Atuais","Rendimentos não adquiridos"]
[null,"Passivos a Longo Prazo","Hipoteca a pagar"]
[null,"Capital Próprio","Capital de investimento",null,350]
[null,"Capital Próprio","Lucros não distribuídos acumulados"]
[null,"Passivos Totais e Capitais Próprios",null,{"$f":"SUBTOTAL(109,Passivos[Ano Anterior])","v":500},{"$f":"SUBTOTAL(109,Passivos[Ano Atual])","v":700}]

{"sheet":"Categorias","index":3,"n_rows":9,"n_cols":2,"rows_kept":9}
[null,"Categorias"]
[]
[null,"Categorias"]
[null,"Ativos Atuais"]
[null,"Ativos Fixos"]
[null,"Outros Ativos"]
[null,"Passivos Atuais"]
[null,"Passivos a Longo Prazo"]
[null,"Capital Próprio"]